Organisation Name,Department where exp. Incurred,Service Category Label,Supplier (Beneficiary),Purpose of Expenditure,Procurement (Merchant) Category,Purchase Date,Settlement Date,Transaction Number,Net Amount (�)
Stockport MBC,Corporate and Support Services,Central Support Costs,FASTHOSTS,Information and Communications Technology,Information Communication Technology  ,31.05.2022,16.06.2022,GPC05220000001,92.40
Stockport MBC,Corporate and Support Services,Central Support Costs,EBAY O 06-08676-16684,Information and Communications Technology,Information Communication Technology  ,26.05.2022,16.06.2022,GPC05220000002,223.00
Stockport MBC,Corporate and Support Services,Central Support Costs,MIRO.COM,Information and Communications Technology,Information Communication Technology  ,24.05.2022,16.06.2022,GPC05220000003,279.84
Stockport MBC,Corporate and Support Services,Central Support Costs,FASTHOSTS,Information and Communications Technology,Information Communication Technology  ,17.05.2022,16.06.2022,GPC05220000004,25.07
Stockport MBC,Corporate and Support Services,Central Support Costs,AUTH0.COM,Information and Communications Technology,Information Communication Technology  ,13.05.2022,16.06.2022,GPC05220000005,10.15
Stockport MBC,Corporate and Support Services,Central Support Costs,GITHUB,Information and Communications Technology,Information Communication Technology  ,14.05.2022,16.06.2022,GPC05220000006,84.70
Stockport MBC,Corporate and Support Services,Central Support Costs,AWS EMEA,Information and Communications Technology,Information Communication Technology  ,15.05.2022,16.06.2022,GPC05220000007,10.87
Stockport MBC,Corporate and Support Services,Central Support Costs,FASTHOSTS,Information and Communications Technology,Information Communication Technology  ,10.05.2022,16.06.2022,GPC05220000008,25.18
Stockport MBC,Corporate and Support Services,Central Support Costs,WWW.CONTENTFUL.COM,Information and Communications Technology,Information Communication Technology  ,09.05.2022,16.06.2022,GPC05220000009,603.90
Stockport MBC,Corporate and Support Services,Central Support Costs,FASTHOSTS,Information and Communications Technology,Information Communication Technology  ,07.05.2022,16.06.2022,GPC05220000010,6.34
Stockport MBC,Corporate and Support Services,Central Support Costs,ATLASSIAN,Information and Communications Technology,Information Communication Technology  ,08.05.2022,16.06.2022,GPC05220000011,603.90
Stockport MBC,Corporate and Support Services,Central Support Costs,AUTH0.COM,Information and Communications Technology,Information Communication Technology  ,05.05.2022,16.06.2022,GPC05220000012,165.18
Stockport MBC,Corporate and Support Services,Central Support Costs,EASILY LTD,Information and Communications Technology,Information Communication Technology  ,05.05.2022,16.06.2022,GPC05220000013,7.50
Stockport MBC,Corporate and Support Services,Central Support Costs,AWS EMEA,Information and Communications Technology,Information Communication Technology  ,02.05.2022,16.06.2022,GPC05220000014,"1,223.95"
Stockport MBC,Corporate and Support Services,Central Services to the public,BREAD AND BUTTIES LTD,Expenses and Allowances,Human Resources Travel & Subsistence ,23.05.2022,16.06.2022,GPC05220000015,57.10
Stockport MBC,Corporate and Support Services,Central Services to the public,BREAD AND BUTTIES LTD,Expenses and Allowances,Human Resources Travel & Subsistence ,20.05.2022,16.06.2022,GPC05220000016,39.49
Stockport MBC,Corporate and Support Services,Central Services to the public,MERCURE WALTON WARWICK,Travelling Expenses,Human Resources Travel & Subsistence ,19.05.2022,16.06.2022,GPC05220000017,141.00
Stockport MBC,Corporate and Support Services,Central Services to the public,MERCURE WALTON WARWICK,Travelling Expenses,Human Resources Travel & Subsistence ,19.05.2022,16.06.2022,GPC05220000018,141.00
Stockport MBC,Corporate and Support Services,Central Services to the public,BREAD AND BUTTIES LTD,Expenses and Allowances,Human Resources Travel & Subsistence ,19.05.2022,16.06.2022,GPC05220000019,49.10
Stockport MBC,Corporate and Support Services,Central Services to the public,BREAD AND BUTTIES LTD,Expenses and Allowances,Human Resources Travel & Subsistence ,18.05.2022,16.06.2022,GPC05220000020,51.00
Stockport MBC,Corporate and Support Services,Central Services to the public,BREAD AND BUTTIES LTD,Expenses and Allowances,Human Resources Travel & Subsistence ,17.05.2022,16.06.2022,GPC05220000021,54.30
Stockport MBC,Corporate and Support Services,Central Services to the public,BREAD AND BUTTIES LTD,Expenses and Allowances,Human Resources Travel & Subsistence ,16.05.2022,16.06.2022,GPC05220000022,54.20
Stockport MBC,Corporate and Support Services,Central Services to the public,BREAD AND BUTTIES LTD,Expenses and Allowances,Human Resources Travel & Subsistence ,10.05.2022,16.06.2022,GPC05220000023,55.20
Stockport MBC,Corporate and Support Services,Central Services to the public,BREAD AND BUTTIES LTD,Expenses and Allowances,Human Resources Travel & Subsistence ,09.05.2022,16.06.2022,GPC05220000024,51.31
Stockport MBC,Corporate and Support Services,Central Services to the public,AMZNMKTPLACE AMAZON.CO,COVID,COVID,05.05.2022,16.06.2022,GPC05220000025,164.74
Stockport MBC,Corporate and Support Services,Central Services to the public,BREAD AND BUTTIES HEAV,Expenses and Allowances,Human Resources Travel & Subsistence ,05.05.2022,16.06.2022,GPC05220000026,54.20
Stockport MBC,Corporate and Support Services,Central Services to the public,BREAD AND BUTTIES HEAV,Expenses and Allowances,Human Resources Travel & Subsistence ,04.05.2022,16.06.2022,GPC05220000027,50.80
Stockport MBC,Corporate and Support Services,Central Support Costs,FACEBK  4Y2W3FTLG2,Office Expenses,Facilities & Management Services  ,01.06.2022,16.06.2022,GPC05220000028,519.59
Stockport MBC,Corporate and Support Services,Central Support Costs,APPLE.COM/BILL,Information and Communications Technology,Information Communication Technology  ,26.05.2022,16.06.2022,GPC05220000029,5.83
Stockport MBC,Corporate and Support Services,Central Support Costs,GOOGLE ADS8179771860,Office Expenses,Facilities & Management Services  ,21.05.2022,16.06.2022,GPC05220000030,500.00
Stockport MBC,Corporate and Support Services,Central Support Costs,SITEGROUND HOSTING,Information and Communications Technology,Information Communication Technology  ,03.05.2022,16.06.2022,GPC05220000031,15.00
Stockport MBC,Services to Place,Cultural & Related Services,POST OFFICE COUNTER,Office Expenses,Mail Services�  ,23.05.2022,16.06.2022,GPC05220000032,29.55
Stockport MBC,Services to Place,Cultural & Related Services,LIDL GB CHEADLE,Catering Supplies,Catering Food & Beverages ,19.05.2022,16.06.2022,GPC05220000033,16.93
Stockport MBC,Services to Place,Cultural & Related Services,AMZNMKTPLACE,Furniture and Equipment,Environmental Services Technical Equipment ,14.05.2022,16.06.2022,GPC05220000034,39.17
Stockport MBC,Corporate and Support Services,Central Services to the public,INTERFLORA BRITISH UNI,Furniture and Equipment,Environmental Services Technical Equipment ,13.05.2022,16.06.2022,GPC05220000035,37.00
Stockport MBC,Services to People,Childrens & Educational Services,CITY LOCK AND SAFE,Cleaning,Cleaning & Janitorial  ,27.05.2022,16.06.2022,GPC05220000036,21.65
Stockport MBC,Services to People,Childrens & Educational Services,CITY LOCK AND SAFE,Cleaning,Cleaning & Janitorial  ,04.05.2022,16.06.2022,GPC05220000037,13.50
Stockport MBC,Services to People,Childrens & Educational Services,CM  MUSICROOM.COM,Library Equipment,Education Library Books ,03.05.2022,16.06.2022,GPC05220000038,13.95
Stockport MBC,Services to People,Childrens & Educational Services,CITY LOCK AND SAFE,Cleaning,Cleaning & Janitorial  ,03.05.2022,16.06.2022,GPC05220000039,5.00
Stockport MBC,Services to People,Childrens & Educational Services,AMZNMKTPLACE,Office Expenses,Facilities & Management Services  ,01.06.2022,16.06.2022,GPC05220000040,181.98
Stockport MBC,Services to People,Childrens & Educational Services,CHESHIRE AGRICULTURAL,Office Expenses,Facilities & Management Services  ,31.05.2022,16.06.2022,GPC05220000041,100.00
Stockport MBC,Services to People,Childrens & Educational Services,FACEBK  95HCSETRK2,Office Expenses,Facilities & Management Services  ,31.05.2022,16.06.2022,GPC05220000042,334.91
Stockport MBC,Services to People,Childrens & Educational Services,ONE4ALL,Office Expenses,Facilities & Management Services  ,26.05.2022,16.06.2022,GPC05220000043,506.50
Stockport MBC,Services to People,Childrens & Educational Services,CVAA UK LTD,Staff Training,Human Resources  ,26.05.2022,16.06.2022,GPC05220000044,119.00
Stockport MBC,Services to People,Childrens & Educational Services,GOOGLE ADS8179771860,Office Expenses,Facilities & Management Services  ,11.05.2022,16.06.2022,GPC05220000045,500.00
Stockport MBC,Services to People,Childrens & Educational Services,AMAZON.CO.UK 2D9QZ6SH4,Publicity and Promotion,Arts & Leisure Services  ,10.05.2022,16.06.2022,GPC05220000046,12.21
Stockport MBC,Services to People,Childrens & Educational Services,CVAA UK LTD,Staff Training,Human Resources  ,09.05.2022,16.06.2022,GPC05220000047,178.00
Stockport MBC,Services to People,Childrens & Educational Services,AMZNMKTPLACE,Publicity and Promotion,Arts & Leisure Services  ,06.05.2022,16.06.2022,GPC05220000048,49.79
Stockport MBC,Services to People,Childrens & Educational Services,AMZNMKTPLACE AMAZON.CO,Publicity and Promotion,Arts & Leisure Services  ,04.05.2022,16.06.2022,GPC05220000049,2.00
Stockport MBC,Services to People,Childrens & Educational Services,CVAA UK LTD,Staff Training,Human Resources  ,04.05.2022,16.06.2022,GPC05220000050,49.00
Stockport MBC,Services to People,Childrens & Educational Services,AMZNMKTPLACE AMAZON.CO,Publicity and Promotion,Arts & Leisure Services  ,04.05.2022,16.06.2022,GPC05220000051,8.70
Stockport MBC,Services to People,Childrens & Educational Services,AMZNMKTPLACE AMAZON.CO,Publicity and Promotion,Arts & Leisure Services  ,03.05.2022,16.06.2022,GPC05220000052,10.99
Stockport MBC,Services to People,Childrens & Educational Services,AMZNMKTPLACE AMAZON.CO,Publicity and Promotion,Arts & Leisure Services  ,03.05.2022,16.06.2022,GPC05220000053,2.99
Stockport MBC,Services to People,Childrens & Educational Services,CVAA UK LTD,Staff Training,Human Resources  ,03.05.2022,16.06.2022,GPC05220000054,89.00
Stockport MBC,Services to People,Childrens & Educational Services,AMZNMKTPLACE AMAZON.CO,Publicity and Promotion,Arts & Leisure Services  ,01.05.2022,16.06.2022,GPC05220000055,21.32
Stockport MBC,Services to People,Childrens & Educational Services,AMZNMKTPLACE AMAZON.CO,Publicity and Promotion,Arts & Leisure Services  ,02.05.2022,16.06.2022,GPC05220000056,1.85
Stockport MBC,Services to People,Childrens & Educational Services,AMZNMKTPLACE AMAZON.CO,Publicity and Promotion,Arts & Leisure Services  ,01.05.2022,16.06.2022,GPC05220000057,24.96
Stockport MBC,Corporate and Support Services,Corporate & Democratic Core,STARTPOINT,Office Expenses,Catering  ,25.05.2022,16.06.2022,GPC05220000058,20.40
Stockport MBC,Corporate and Support Services,Corporate & Democratic Core,PP PETERGARDNE,Office Expenses,Catering  ,23.05.2022,16.06.2022,GPC05220000059,17.00
Stockport MBC,Corporate and Support Services,Corporate & Democratic Core,SUMUP   TAXI,Travelling Expenses,Human Resources Travel & Subsistence ,23.05.2022,16.06.2022,GPC05220000060,17.00
Stockport MBC,Corporate and Support Services,Corporate & Democratic Core,CITIPARK MERRION,Travelling Expenses,Human Resources Travel & Subsistence ,18.05.2022,16.06.2022,GPC05220000061,9.50
Stockport MBC,Corporate and Support Services,Corporate & Democratic Core,THETRAINLINE.COM,Travelling Expenses,Human Resources Travel & Subsistence ,17.05.2022,16.06.2022,GPC05220000062,28.17
Stockport MBC,Corporate and Support Services,Corporate & Democratic Core,HOLIDAY INNS,Office Expenses,Catering  ,04.05.2022,16.06.2022,GPC05220000063,14.80
Stockport MBC,Services to People,Childrens & Educational Services,AMZNMKTPLACE AMAZON.CO,Furniture and Equipment,Furniture & Soft Furnishings  ,24.05.2022,16.06.2022,GPC05220000064,23.97
Stockport MBC,Services to People,Childrens & Educational Services,AMAZON PRIME 2D33Y4YF4,Furniture and Equipment,Furniture & Soft Furnishings  ,13.05.2022,16.06.2022,GPC05220000065,7.99
Stockport MBC,Services to People,Childrens & Educational Services,AMAZON.CO.UK 2D1N25934,Furniture and Equipment,Furniture & Soft Furnishings  ,11.05.2022,16.06.2022,GPC05220000066,24.18
Stockport MBC,Services to People,Childrens & Educational Services,WWW.HOTLINE.CO.UK,Office Expenses,Stationery    ,09.05.2022,16.06.2022,GPC05220000067,3.68
Stockport MBC,Services to People,Childrens & Educational Services,PAYPAL  THESENSORYP,Staff Training,Human Resources  ,06.05.2022,16.06.2022,GPC05220000068,95.00
Stockport MBC,Services to People,Childrens & Educational Services,WM MORRISONS STORE,Catering Supplies,Catering Food & Beverages ,27.05.2022,16.06.2022,GPC05220000069,7.03
Stockport MBC,Services to People,Childrens & Educational Services,WM MORRISONS STORE,Catering Supplies,Catering Food & Beverages ,24.05.2022,16.06.2022,GPC05220000070,3.66
Stockport MBC,Services to People,Childrens & Educational Services,WM MORRISONS STORE,Catering Supplies,Catering Food & Beverages ,23.05.2022,16.06.2022,GPC05220000071,37.35
Stockport MBC,Services to People,Childrens & Educational Services,WM MORRISONS STORE,Catering Supplies,Catering Food & Beverages ,17.05.2022,16.06.2022,GPC05220000072,12.66
Stockport MBC,Services to People,Childrens & Educational Services,AMZNMKTPLACE AMAZON.CO,Furniture and Equipment,Environmental Services Technical Equipment ,17.05.2022,16.06.2022,GPC05220000073,7.49
Stockport MBC,Services to People,Childrens & Educational Services,WM MORRISONS STORE,Catering Supplies,Catering Food & Beverages ,16.05.2022,16.06.2022,GPC05220000074,11.84
Stockport MBC,Services to People,Childrens & Educational Services,WM MORRISONS STORE,Catering Supplies,Catering Food & Beverages ,11.05.2022,16.06.2022,GPC05220000075,43.87
Stockport MBC,Services to People,Childrens & Educational Services,B&Q LTD,Furniture and Equipment,Environmental Services Technical Equipment ,11.05.2022,16.06.2022,GPC05220000076,9.00
Stockport MBC,Services to People,Childrens & Educational Services,WM MORRISONS STORE,Catering Supplies,Catering Food & Beverages ,10.05.2022,16.06.2022,GPC05220000077,39.29
Stockport MBC,Services to People,Childrens & Educational Services,THE EDGE (SYSTEMS) LIM,Furniture and Equipment,Environmental Services Technical Equipment ,11.05.2022,16.06.2022,GPC05220000078,12.00
Stockport MBC,Services to People,Childrens & Educational Services,WWW.THEEDGESYSTEMS.CO.,Furniture and Equipment,Environmental Services Technical Equipment ,11.05.2022,16.06.2022,GPC05220000079,67.74
Stockport MBC,Services to People,Childrens & Educational Services,POST OFFICE COUNTER,Office Expenses,Mail Services�  ,10.05.2022,16.06.2022,GPC05220000080,65.28
Stockport MBC,Services to People,Childrens & Educational Services,WM MORRISONS STORE,Catering Supplies,Catering Food & Beverages ,09.05.2022,16.06.2022,GPC05220000081,37.25
Stockport MBC,Services to People,Childrens & Educational Services,WM MORRISONS STORE,Catering Supplies,Catering Food & Beverages ,05.05.2022,16.06.2022,GPC05220000082,3.15
Stockport MBC,Services to People,Childrens & Educational Services,WM MORRISONS STORE,Catering Supplies,Catering Food & Beverages ,04.05.2022,16.06.2022,GPC05220000083,2.08
Stockport MBC,Services to People,Childrens & Educational Services,WM MORRISONS STORE,Catering Supplies,Catering Food & Beverages ,03.05.2022,16.06.2022,GPC05220000084,4.86
Stockport MBC,Services to People,Childrens & Educational Services,WWW.LANESIDECARAVA,Fees and Charges,Education  ,03.05.2022,16.06.2022,GPC05220000085,152.50
Stockport MBC,Services to People,Childrens & Educational Services,WWW.SIGN-HOLDERS.CO.UK,Furniture and Equipment,Environmental Services Technical Equipment ,03.05.2022,16.06.2022,GPC05220000086,43.30
Stockport MBC,Corporate and Support Services,Corporate & Democratic Core,AMZNMKTPLACE AMAZON.CO,Furniture and Equipment,Environmental Services Technical Equipment ,24.05.2022,16.06.2022,GPC05220000087,88.79
Stockport MBC,Corporate and Support Services,Corporate & Democratic Core,WWW.AVANTIWESTCOAST.CO,Travelling Expenses,Human Resources Travel & Subsistence ,10.05.2022,16.06.2022,GPC05220000088,496.00
Stockport MBC,Corporate and Support Services,Corporate & Democratic Core,WWW.AVANTIWESTCOAST.CO,Travelling Expenses,Human Resources Travel & Subsistence ,10.05.2022,16.06.2022,GPC05220000089,485.40
Stockport MBC,Services to People,Adult Social Care,ASDA GROCERIES ONLINE,Catering Supplies,Catering Food & Beverages ,26.05.2022,16.06.2022,GPC05220000090,102.37
Stockport MBC,Services to People,Adult Social Care,ASDA GROCERIES ONLINE,Catering Supplies,Catering Food & Beverages ,26.05.2022,16.06.2022,GPC05220000091,-0.52
Stockport MBC,Services to People,Adult Social Care,ASDA GROCERIES ONLINE,Catering Supplies,Catering Food & Beverages ,19.05.2022,16.06.2022,GPC05220000092,118.67
Stockport MBC,Services to People,Adult Social Care,ASDA GROCERIES ONLINE,Catering Supplies,Catering Food & Beverages ,12.05.2022,16.06.2022,GPC05220000093,-0.75
Stockport MBC,Services to People,Adult Social Care,ASDA GROCERIES ONLINE,Catering Supplies,Catering Food & Beverages ,12.05.2022,16.06.2022,GPC05220000094,89.32
Stockport MBC,Services to People,Adult Social Care,ASDA GROCERIES ONLINE,Catering Supplies,Catering Food & Beverages ,05.05.2022,16.06.2022,GPC05220000095,117.72
Stockport MBC,Services to Place,Planning Services,AMAZON.CO.UK 2G3HK0VZ4,Fees and Charges,UNCLASSIFIED  ,01.06.2022,16.06.2022,GPC05220000096,270.00
Stockport MBC,Corporate and Support Services,Central Support Costs,WWW.GOV.UK,Legal Fees,Legal Services  ,27.05.2022,16.06.2022,GPC05220000097,1.50
Stockport MBC,Corporate and Support Services,Central Support Costs,STOCKPORT M B C,Legal Fees,Legal Services  ,26.05.2022,16.06.2022,GPC05220000098,11.00
Stockport MBC,Corporate and Support Services,Central Support Costs,AMZNMKTPLACE,Office Expenses,Facilities & Management Services  ,19.05.2022,16.06.2022,GPC05220000099,17.98
Stockport MBC,Corporate and Support Services,Central Support Costs,WWW.GOV.UK,Legal Fees,Legal Services  ,18.05.2022,16.06.2022,GPC05220000100,1.50
Stockport MBC,Corporate and Support Services,Corporate & Democratic Core,AMZNMKTPLACE AMAZON.CO,Furniture and Equipment,Furniture & Soft Furnishings  ,17.05.2022,16.06.2022,GPC05220000101,239.85
Stockport MBC,Corporate and Support Services,Corporate & Democratic Core,AMZNMKTPLACE,Furniture and Equipment,Furniture & Soft Furnishings  ,17.05.2022,16.06.2022,GPC05220000102,220.75
Stockport MBC,Corporate and Support Services,Central Support Costs,AMAZON.CO.UK 251Z43CA4,Office Expenses,Stationery    ,13.05.2022,16.06.2022,GPC05220000103,111.78
Stockport MBC,Corporate and Support Services,Corporate & Democratic Core,AMZNMKTPLACE,Furniture and Equipment,Furniture & Soft Furnishings  ,11.05.2022,16.06.2022,GPC05220000104,186.89
Stockport MBC,Services to People,Adult Social Care,ALDI 84 773,Catering Supplies,Catering Food & Beverages ,17.05.2022,16.06.2022,GPC05220000105,18.26
Stockport MBC,Services to People,Adult Social Care,EBAY O 22-08584-46542,Office Expenses,Health & Safety�  ,04.05.2022,16.06.2022,GPC05220000106,14.04
Stockport MBC,Services to People,Adult Social Care,EBAY O 24-08598-41438,Office Expenses,Health & Safety�  ,04.05.2022,16.06.2022,GPC05220000107,8.59
Stockport MBC,Corporate and Support Services,Cultural & Related Services,SAINSBURY'S S/MKT,Catering Supplies,Catering Food & Beverages ,23.05.2022,16.06.2022,GPC05220000108,3.60
Stockport MBC,Corporate and Support Services,Cultural & Related Services,SAINSBURY'S S/MKTS,Catering Supplies,Catering Food & Beverages ,12.05.2022,16.06.2022,GPC05220000109,3.95
Stockport MBC,Services to Place,Cultural & Related Services,AMZNMKTPLACE,Furniture and Equipment,Furniture & Soft Furnishings  ,24.05.2022,16.06.2022,GPC05220000110,32.48
Stockport MBC,Services to People,Childrens & Educational Services,AMZNMKTPLACE AMAZON.CO,Furniture and Equipment,Environmental Services Technical Equipment ,04.05.2022,16.06.2022,GPC05220000111,104.86
Stockport MBC,Services to People,Childrens & Educational Services,AMZNMKTPLACE,Furniture and Equipment,Environmental Services Technical Equipment ,05.05.2022,16.06.2022,GPC05220000112,10.62
Stockport MBC,Services to People,Childrens & Educational Services,AMZNMKTPLACE,Furniture and Equipment,Environmental Services Technical Equipment ,04.05.2022,16.06.2022,GPC05220000113,73.76
Stockport MBC,Services to People,Adult Social Care,ALDI 84 773,Catering Supplies,Catering Food & Beverages ,17.05.2022,16.06.2022,GPC05220000114,52.78
Stockport MBC,Services to People,Adult Social Care,TESCO STORE 2629,Furniture and Equipment,Environmental Services Technical Equipment ,13.05.2022,16.06.2022,GPC05220000115,39.99
Stockport MBC,Services to People,Adult Social Care,ALDI 84 773,Catering Supplies,Catering Food & Beverages ,04.05.2022,16.06.2022,GPC05220000116,46.80
Stockport MBC,Services to People,Childrens & Educational Services,AMAZON PRIME 256FM9PP4,Fees and Charges,Financial Services  ,18.05.2022,16.06.2022,GPC05220000117,7.99
Stockport MBC,Services to People,Childrens & Educational Services,WICKES STOCKPORT,Repairs and Maintenance,"Works - Construction, Repair & Maintenance  ",27.05.2022,16.06.2022,GPC05220000118,6.00
Stockport MBC,Services to People,Childrens & Educational Services,ASDA STORES 4840,Catering Supplies,Catering Food & Beverages ,25.05.2022,16.06.2022,GPC05220000119,2.20
Stockport MBC,Services to People,Childrens & Educational Services,AMZNMKTPLACE,Furniture and Equipment,Furniture & Soft Furnishings  ,24.05.2022,16.06.2022,GPC05220000120,27.57
Stockport MBC,Services to People,Childrens & Educational Services,ASDA STORES 4840,Furniture and Equipment,Furniture & Soft Furnishings  ,19.05.2022,16.06.2022,GPC05220000121,7.50
Stockport MBC,Services to People,Childrens & Educational Services,POST OFFICE COUNTER,Office Expenses,Mail Services�  ,19.05.2022,16.06.2022,GPC05220000122,6.85
Stockport MBC,Services to People,Childrens & Educational Services,ASDA STORES 4840,Furniture and Equipment,Furniture & Soft Furnishings  ,18.05.2022,16.06.2022,GPC05220000123,8.00
Stockport MBC,Services to People,Childrens & Educational Services,ASDA STORES 4840,Catering Supplies,Catering Food & Beverages ,17.05.2022,16.06.2022,GPC05220000124,3.80
Stockport MBC,Services to People,Childrens & Educational Services,ASDA STORES 4840,Cleaning,Cleaning & Janitorial  ,13.05.2022,16.06.2022,GPC05220000125,7.48
Stockport MBC,Services to People,Childrens & Educational Services,DRI CLARO SOFTWARE LTD,Furniture and Equipment,Environmental Services Technical Equipment ,13.05.2022,16.06.2022,GPC05220000126,70.80
Stockport MBC,Services to People,Childrens & Educational Services,POST OFFICE COUNTER,Office Expenses,Mail Services�  ,09.05.2022,16.06.2022,GPC05220000127,5.70
Stockport MBC,Services to People,Childrens & Educational Services,ASDA STORES 4840,Cleaning,Cleaning & Janitorial  ,04.05.2022,16.06.2022,GPC05220000128,4.48
Stockport MBC,Services to People,Adult Social Care,CURRYS STOCKPORT,Furniture and Equipment,Environmental Services Technical Equipment ,13.05.2022,16.06.2022,GPC05220000129,333.33
Stockport MBC,Services to Place,Childrens & Educational Services,AMZNMKTPLACE,Furniture and Equipment,Furniture & Soft Furnishings  ,31.05.2022,16.06.2022,GPC05220000130,11.97
Stockport MBC,Services to Place,Childrens & Educational Services,SQ  MEDIA PRINT AND DE,Printing and Photocopying,Facilities & Management Services Printing ,23.05.2022,16.06.2022,GPC05220000131,392.40
Stockport MBC,Services to Place,Childrens & Educational Services,B & Q 1279,Furniture and Equipment,Furniture & Soft Furnishings  ,10.05.2022,16.06.2022,GPC05220000132,98.44
Stockport MBC,Services to Place,Childrens & Educational Services,ASDA STORES 4840,Furniture and Equipment,Furniture & Soft Furnishings  ,10.05.2022,16.06.2022,GPC05220000133,9.50
Stockport MBC,Services to Place,Childrens & Educational Services,AMZNMKTPLACE,Furniture and Equipment,Furniture & Soft Furnishings  ,04.05.2022,16.06.2022,GPC05220000134,37.92
Stockport MBC,Services to People,Childrens & Educational Services,AMZNMKTPLACE AMAZON.CO,Furniture and Equipment,Furniture & Soft Furnishings  ,22.05.2022,16.06.2022,GPC05220000135,4.99
Stockport MBC,Services to People,Childrens & Educational Services,TESCO STORES 3378,Catering Supplies,Catering Food & Beverages ,23.05.2022,16.06.2022,GPC05220000136,76.59
Stockport MBC,Services to People,Childrens & Educational Services,MCDONALDS 1202,Catering Supplies,Catering Food & Beverages ,19.05.2022,16.06.2022,GPC05220000137,40.24
Stockport MBC,Services to People,Childrens & Educational Services,HOME BARGAINS,Furniture and Equipment,Furniture & Soft Furnishings  ,18.05.2022,16.06.2022,GPC05220000138,10.99
Stockport MBC,Services to People,Childrens & Educational Services,3C_ ECP WELLINGTON ST,Travelling Expenses,Human Resources Travel & Subsistence ,18.05.2022,16.06.2022,GPC05220000139,7.00
Stockport MBC,Services to People,Childrens & Educational Services,THE WORKS,Furniture and Equipment,Furniture & Soft Furnishings  ,17.05.2022,16.06.2022,GPC05220000140,12.00
Stockport MBC,Services to People,Childrens & Educational Services,JYSK LTD,Furniture and Equipment,Furniture & Soft Furnishings  ,16.05.2022,16.06.2022,GPC05220000141,15.00
Stockport MBC,Services to People,Childrens & Educational Services,TESCO STORES 3378,Catering Supplies,Catering Food & Beverages ,16.05.2022,16.06.2022,GPC05220000142,106.95
Stockport MBC,Services to People,Childrens & Educational Services,ASDA STORES,Furniture and Equipment,Furniture & Soft Furnishings  ,11.05.2022,16.06.2022,GPC05220000143,33.00
Stockport MBC,Services to People,Childrens & Educational Services,B&M 570 - CLARKWAYHYDE,Cleaning,Cleaning & Janitorial  ,11.05.2022,16.06.2022,GPC05220000144,42.28
Stockport MBC,Services to People,Childrens & Educational Services,B&M 570 - CLARKWAYHYDE,Furniture and Equipment,Furniture & Soft Furnishings  ,11.05.2022,16.06.2022,GPC05220000145,24.17
Stockport MBC,Services to People,Childrens & Educational Services,ASDA STORES 4840,Catering Supplies,Catering Food & Beverages ,11.05.2022,16.06.2022,GPC05220000146,18.20
Stockport MBC,Services to People,Childrens & Educational Services,TESCO STORES 3378,Furniture and Equipment,Furniture & Soft Furnishings  ,10.05.2022,16.06.2022,GPC05220000147,49.50
Stockport MBC,Services to People,Childrens & Educational Services,TESCO STORES 3378,Catering Supplies,Catering Food & Beverages ,10.05.2022,16.06.2022,GPC05220000148,101.76
Stockport MBC,Services to People,Childrens & Educational Services,ASDA STORES 4840,Catering Supplies,Catering Food & Beverages ,03.05.2022,16.06.2022,GPC05220000149,58.65
Stockport MBC,Services to People,Childrens & Educational Services,CURRYS ONLINE,Furniture and Equipment,Environmental Services Technical Equipment ,01.06.2022,16.06.2022,GPC05220000150,149.00
Stockport MBC,Services to People,Childrens & Educational Services,PREMIER INN44020530,Care Payments,Social Community Care Supplies & Services  ,31.05.2022,16.06.2022,GPC05220000151,567.00
Stockport MBC,Services to People,Childrens & Educational Services,ARGOS LTD,Furniture and Equipment,Environmental Services Technical Equipment ,27.05.2022,16.06.2022,GPC05220000152,96.95
Stockport MBC,Services to People,Childrens & Educational Services,STAPLES,Furniture and Equipment,Environmental Services Technical Equipment ,25.05.2022,16.06.2022,GPC05220000153,62.88
Stockport MBC,Services to People,Childrens & Educational Services,HOTEL AT BOOKING.COM,Care Payments,Social Community Care Supplies & Services  ,25.05.2022,16.06.2022,GPC05220000154,"1,954.87"
Stockport MBC,Services to People,Childrens & Educational Services,TRAINLINE.COM,Travelling Expenses,Human Resources Travel & Subsistence ,17.05.2022,16.06.2022,GPC05220000155,40.79
Stockport MBC,Services to People,Childrens & Educational Services,OPEN FORUM EVENTS,Staff Training,Human Resources  ,17.05.2022,16.06.2022,GPC05220000156,468.00
Stockport MBC,Services to People,Childrens & Educational Services,ARGOS LTD,Furniture and Equipment,Environmental Services Technical Equipment ,12.05.2022,16.06.2022,GPC05220000157,15.95
Stockport MBC,Services to People,Childrens & Educational Services,BOOKINGUK (LTD),Expenses and Allowances,Catering  ,12.05.2022,16.06.2022,GPC05220000158,121.50
Stockport MBC,Services to People,Childrens & Educational Services,AMZNMKTPLACE AMAZON.CO,Publicity and Promotion,Arts & Leisure Services  ,10.05.2022,16.06.2022,GPC05220000159,43.94
Stockport MBC,Services to People,Childrens & Educational Services,ARGOS LTD,Furniture and Equipment,Environmental Services Technical Equipment ,06.05.2022,16.06.2022,GPC05220000160,109.95
Stockport MBC,Services to People,Childrens & Educational Services,THETRAINLINE.COM,Travelling Expenses,Human Resources Travel & Subsistence ,05.05.2022,16.06.2022,GPC05220000161,108.41
Stockport MBC,Services to People,Childrens & Educational Services,TRAINLINE.COM,Travelling Expenses,Human Resources Travel & Subsistence ,03.05.2022,16.06.2022,GPC05220000162,280.98
Stockport MBC,Services to People,Childrens & Educational Services,STOCKPORT MBC DOM,Care Payments,Social Community Care Supplies & Services  ,31.05.2022,16.06.2022,GPC05220000163,483.87
Stockport MBC,Services to People,Childrens & Educational Services,1 AND 1 IONOS LTD,Information and Communications Technology,Information Communication Technology  ,27.05.2022,16.06.2022,GPC05220000164,12.00
Stockport MBC,Services to People,Childrens & Educational Services,STOCKPORT MBC DOM,Care Payments,Social Community Care Supplies & Services  ,17.05.2022,16.06.2022,GPC05220000165,187.70
Stockport MBC,Services to People,Childrens & Educational Services,ZOOM.US 888-799-9666,Information and Communications Technology,Information Communication Technology  ,11.05.2022,16.06.2022,GPC05220000166,11.99
Stockport MBC,Services to People,Childrens & Educational Services,EB  WHOSE AGENDA COVID,Staff Training,Human Resources  ,11.05.2022,16.06.2022,GPC05220000167,44.30
Stockport MBC,Services to People,Childrens & Educational Services,247HOTEL.COM,Care Payments,Social Community Care Supplies & Services  ,11.05.2022,16.06.2022,GPC05220000168,280.00
Stockport MBC,Services to People,Childrens & Educational Services,EB  WHOSE AGENDA COVID,Staff Training,Human Resources  ,06.05.2022,16.06.2022,GPC05220000169,385.00
Stockport MBC,Services to People,Childrens & Educational Services,THETRAINLINE.COM,Care Payments,Social Community Care Supplies & Services  ,06.05.2022,16.06.2022,GPC05220000170,133.45
Stockport MBC,Services to People,Childrens & Educational Services,TRAINLINE.COM,Travelling Expenses,Human Resources Travel & Subsistence ,09.05.2022,16.06.2022,GPC05220000171,131.21
Stockport MBC,Services to People,Childrens & Educational Services,TRAINLINE.COM,Travelling Expenses,Human Resources Travel & Subsistence ,03.05.2022,16.06.2022,GPC05220000172,188.39
Stockport MBC,Services to People,Childrens & Educational Services,THETRAINLINE.COM,Travelling Expenses,Human Resources Travel & Subsistence ,03.05.2022,16.06.2022,GPC05220000173,493.54
Stockport MBC,Services to People,Childrens & Educational Services,THETRAINLINE.COM,Travelling Expenses,Human Resources Travel & Subsistence ,03.05.2022,16.06.2022,GPC05220000174,151.35
Stockport MBC,Services to People,Childrens & Educational Services,BREDBURY HALL HOTEL,Expenses and Allowances,Catering  ,11.05.2022,16.06.2022,GPC05220000175,94.05
Stockport MBC,Services to People,Childrens & Educational Services,BREDBURY HALL HOTEL,Expenses and Allowances,Catering  ,11.05.2022,16.06.2022,GPC05220000176,94.05
Stockport MBC,Services to People,Childrens & Educational Services,ASDA GROCERIES ONLINE,Catering Supplies,Catering Food & Beverages ,28.05.2022,16.06.2022,GPC05220000177,6.00
Stockport MBC,Services to People,Childrens & Educational Services,WM MORRISONS STORE,Catering Supplies,Catering Food & Beverages ,27.05.2022,16.06.2022,GPC05220000178,10.61
Stockport MBC,Services to People,Childrens & Educational Services,WM MORRISONS STORE,Catering Supplies,Catering Food & Beverages ,25.05.2022,16.06.2022,GPC05220000179,13.16
Stockport MBC,Services to People,Childrens & Educational Services,ASDA GROCERIES ONLINE,Catering Supplies,Catering Food & Beverages ,23.05.2022,16.06.2022,GPC05220000180,84.98
Stockport MBC,Services to People,Childrens & Educational Services,ASDA GROCERIES ONLINE,Catering Supplies,Catering Food & Beverages ,16.05.2022,16.06.2022,GPC05220000181,66.37
Stockport MBC,Services to People,Childrens & Educational Services,ASDA GROCERIES ONLINE,Catering Supplies,Catering Food & Beverages ,09.05.2022,16.06.2022,GPC05220000182,48.79
Stockport MBC,Services to People,Childrens & Educational Services,WM MORRISONS STORE,Catering Supplies,Catering Food & Beverages ,04.05.2022,16.06.2022,GPC05220000183,11.69
Stockport MBC,Services to People,Childrens & Educational Services,ASDA GROCERIES ONLINE,Catering Supplies,Catering Food & Beverages ,03.05.2022,16.06.2022,GPC05220000184,54.86
Stockport MBC,Services to People,Childrens & Educational Services,NETFLIX.COM,Fees and Charges,Financial Services  ,10.05.2022,16.06.2022,GPC05220000185,13.99
Stockport MBC,Services to People,Childrens & Educational Services,DISNEY PLUS,Fees and Charges,Financial Services  ,03.05.2022,16.06.2022,GPC05220000186,7.99
Stockport MBC,Services to People,Childrens & Educational Services,AMZNMKTPLACE,Library Equipment,Education Library Books ,27.05.2022,16.06.2022,GPC05220000187,117.87
Stockport MBC,Services to People,Childrens & Educational Services,AMZNMKTPLACE AMAZON.CO,Library Equipment,Education Library Books ,27.05.2022,16.06.2022,GPC05220000188,146.65
Stockport MBC,Services to People,Childrens & Educational Services,AMZNMKTPLACE AMAZON.CO,Office Expenses,Stationery    ,12.05.2022,16.06.2022,GPC05220000189,84.26
Stockport MBC,Services to People,Childrens & Educational Services,AMAZON.CO.UK 2D77J7RV4,Library Equipment,Education Library Books ,12.05.2022,16.06.2022,GPC05220000190,12.99
Stockport MBC,Services to People,Childrens & Educational Services,AMAZON.CO.UK 257154074,Furniture and Equipment,Environmental Services Technical Equipment ,17.05.2022,16.06.2022,GPC05220000191,24.22
Stockport MBC,Services to People,Childrens & Educational Services,PEAK CAVERN LIMITED,Staff Training,Human Resources  ,13.05.2022,16.06.2022,GPC05220000192,210.00
Stockport MBC,Services to People,Childrens & Educational Services,SMC COACH HIRE LTD,Leasing /Transport Hire,Vehicle Management Leasing ,13.05.2022,16.06.2022,GPC05220000193,250.00
Stockport MBC,Services to People,Childrens & Educational Services,AMZNMKTPLACE,Furniture and Equipment,Environmental Services Technical Equipment ,09.05.2022,16.06.2022,GPC05220000194,22.91
Stockport MBC,Services to People,Childrens & Educational Services,AMAZON PRIME 2D43271F4,Furniture and Equipment,Environmental Services Technical Equipment ,06.05.2022,16.06.2022,GPC05220000195,7.99
Stockport MBC,Services to People,Childrens & Educational Services,AMZNMKTPLACE,Furniture and Equipment,Environmental Services Technical Equipment ,05.05.2022,16.06.2022,GPC05220000196,93.97
Stockport MBC,Services to People,Childrens & Educational Services,AMZNMKTPLACE AMAZON.CO,Furniture and Equipment,Environmental Services Technical Equipment ,04.05.2022,16.06.2022,GPC05220000197,65.98
Stockport MBC,Services to People,Childrens & Educational Services,AMZNMKTPLACE,Furniture and Equipment,Environmental Services Technical Equipment ,04.05.2022,16.06.2022,GPC05220000198,73.26
Stockport MBC,Services to People,Childrens & Educational Services,AMZNMKTPLACE,Furniture and Equipment,Environmental Services Technical Equipment ,04.05.2022,16.06.2022,GPC05220000199,103.30
Stockport MBC,Services to People,Childrens & Educational Services,AMZNMKTPLACE,Furniture and Equipment,Environmental Services Technical Equipment ,04.05.2022,16.06.2022,GPC05220000200,3.44
Stockport MBC,Services to People,Childrens & Educational Services,AMAZON.CO.UK 2D2KN3ZF4,Furniture and Equipment,Environmental Services Technical Equipment ,03.05.2022,16.06.2022,GPC05220000201,54.56
Stockport MBC,Services to People,Childrens & Educational Services,AMZNMKTPLACE,Furniture and Equipment,Environmental Services Technical Equipment ,03.05.2022,16.06.2022,GPC05220000202,19.98
Stockport MBC,Corporate and Support Services,Cultural & Related Services,AMAZON.CO.UK 251UP2RL4,Library Equipment,Education Library Books ,24.05.2022,16.06.2022,GPC05220000203,15.72
Stockport MBC,Corporate and Support Services,Cultural & Related Services,AMZNMKTPLACE AMAZON.CO,Library Equipment,Education Library Books ,22.05.2022,16.06.2022,GPC05220000204,9.99
Stockport MBC,Corporate and Support Services,Cultural & Related Services,AMZNMKTPLACE AMAZON.CO,Library Equipment,Education Library Books ,17.05.2022,16.06.2022,GPC05220000205,15.24
Stockport MBC,Services to People,Adult Social Care,ALDI 84 773,Catering Supplies,Catering Food & Beverages ,26.05.2022,16.06.2022,GPC05220000206,0.65
Stockport MBC,Services to People,Adult Social Care,ALDI 84 773,Catering Supplies,Catering Food & Beverages ,26.05.2022,16.06.2022,GPC05220000207,99.75
Stockport MBC,Corporate and Support Services,Planning Services,ZOOM.US 888-799-9666,Publicity and Promotion,Arts & Leisure Services  ,11.05.2022,16.06.2022,GPC05220000208,143.88
Stockport MBC,Services to Place,Cultural & Related Services,CANVA  03423-8680907,Publicity and Promotion,Arts & Leisure Services  ,17.05.2022,16.06.2022,GPC05220000209,34.99
Stockport MBC,Services to People,Childrens & Educational Services,WM MORRISONS STORE,Catering Supplies,Catering Food & Beverages ,16.05.2022,16.06.2022,GPC05220000210,1.18
Stockport MBC,Services to People,Childrens & Educational Services,ALDI 98 773,Furniture and Equipment,Environmental Services Technical Equipment ,14.05.2022,16.06.2022,GPC05220000211,17.98
Stockport MBC,Corporate and Support Services,Corporate & Democratic Core,TRAINLINE.COM,Travelling Expenses,Human Resources Travel & Subsistence ,27.05.2022,16.06.2022,GPC05220000212,479.54
Stockport MBC,Services to People,Childrens & Educational Services,STERLING EVENT GRO,Publicity and Promotion,Arts & Leisure Services  ,19.05.2022,16.06.2022,GPC05220000213,267.00
Stockport MBC,Services to People,Childrens & Educational Services,THETRAINLINE.COM,Travelling Expenses,Human Resources Travel & Subsistence ,13.05.2022,16.06.2022,GPC05220000214,21.66
Stockport MBC,Services to People,Childrens & Educational Services,STOCKPORT T/O,Travelling Expenses,Human Resources Travel & Subsistence ,01.06.2022,16.06.2022,GPC05220000215,10.40
Stockport MBC,Services to People,Childrens & Educational Services,ZOOM.US 888-799-9666,Fees and Charges,"Works - Construction, Repair & Maintenance  ",26.05.2022,16.06.2022,GPC05220000216,14.39
Stockport MBC,Services to People,Childrens & Educational Services,ASDA SUPERSTORE,Catering Supplies,Catering Food & Beverages ,26.05.2022,16.06.2022,GPC05220000217,7.74
Stockport MBC,Services to People,Childrens & Educational Services,STOCKPORT T/O,Travelling Expenses,Human Resources Travel & Subsistence ,20.05.2022,16.06.2022,GPC05220000218,20.20
Stockport MBC,Services to People,Childrens & Educational Services,ASDA SUPERSTORE,Catering Supplies,Catering Food & Beverages ,18.05.2022,16.06.2022,GPC05220000219,5.97
Stockport MBC,Services to People,Childrens & Educational Services,STOCKPORT T/O,Travelling Expenses,Human Resources Travel & Subsistence ,14.05.2022,16.06.2022,GPC05220000220,7.70
Stockport MBC,Services to People,Childrens & Educational Services,ASDA SUPERSTORE,Catering Supplies,Catering Food & Beverages ,12.05.2022,16.06.2022,GPC05220000221,4.71
Stockport MBC,Services to People,Childrens & Educational Services,WH SMITH,Furniture and Equipment,Environmental Services Technical Equipment ,11.05.2022,16.06.2022,GPC05220000222,15.98
Stockport MBC,Services to People,Childrens & Educational Services,POUNDSTRETCHER 164,Furniture and Equipment,Environmental Services Technical Equipment ,06.05.2022,16.06.2022,GPC05220000223,4.99
Stockport MBC,Services to People,Childrens & Educational Services,ASDA STORE 4422,Catering Supplies,Catering Food & Beverages ,04.05.2022,16.06.2022,GPC05220000224,17.90
Stockport MBC,Corporate and Support Services,Cultural & Related Services,SAINSBURY'S S/MKTS,Catering Supplies,Catering Food & Beverages ,19.05.2022,16.06.2022,GPC05220000225,8.39
Stockport MBC,Corporate and Support Services,Central Support Costs,REPLACEBASE,Furniture and Equipment,Environmental Services Technical Equipment ,18.05.2022,16.06.2022,GPC05220000226,120.52
Stockport MBC,Corporate and Support Services,Central Support Costs,AMZNMKTPLACE,Furniture and Equipment,Environmental Services Technical Equipment ,12.05.2022,16.06.2022,GPC05220000227,83.30
Stockport MBC,Corporate and Support Services,Central Support Costs,TRAINLINE.COM,Travelling Expenses,Human Resources Travel & Subsistence ,01.06.2022,16.06.2022,GPC05220000228,194.33
Stockport MBC,Corporate and Support Services,Central Support Costs,TRAINLINE.COM,Travelling Expenses,Human Resources Travel & Subsistence ,01.06.2022,16.06.2022,GPC05220000229,220.18
Stockport MBC,Services to Place,Highways & Transport Services,EB  THE AUTISM SHOW MA,Staff Training,Human Resources  ,25.05.2022,16.06.2022,GPC05220000230,44.00
Stockport MBC,Services to Place,Environmental & Regulatory Services,TRADING STANDARDS INST,Professional Fees,Consultancy   ,19.05.2022,16.06.2022,GPC05220000231,312.00
Stockport MBC,Services to Place,Planning Services,HAYMARKET MEDIA GROUP,Staff Training,Human Resources  ,16.05.2022,16.06.2022,GPC05220000232,654.00
Stockport MBC,Services to Place,Cultural & Related Services,THOMSON REUTERS UK LTD,Grounds Maintenance,Horticultural  ,12.05.2022,16.06.2022,GPC05220000233,304.00
Stockport MBC,Services to Place,Highways & Transport Services,MICROSOFT MICROSOFT 36,Furniture and Equipment,Environmental Services Technical Equipment ,11.05.2022,16.06.2022,GPC05220000234,59.99
Stockport MBC,Services to Place,Highways & Transport Services,AUTIZMA.CO.UK,Staff Training,Human Resources  ,10.05.2022,16.06.2022,GPC05220000235,42.99
Stockport MBC,Services to People,Childrens & Educational Services,C E X,Furniture and Equipment,Environmental Services Technical Equipment ,20.05.2022,16.06.2022,GPC05220000236,250.00
Stockport MBC,Corporate and Support Services,Cultural & Related Services,SAINSBURY'S S/MKTS,Catering Supplies,Catering Food & Beverages ,09.05.2022,16.06.2022,GPC05220000237,5.40
